Workbook

Sheet паспорт
A1: ПАТ "УКРТРАНСГАЗ" | J1: ПАСПОРТ ФІЗИКО-ХІМІЧНИХ ПОКАЗНИКІВ ПРИРОДНОГО ГАЗУ № 681
A2: Філія УМГ"Харківтрансгаз" | J2: переданого УМГ "ХАРКІВТРАНСГАЗ" Херсонським ЛВУМГ по ГРС Щасливцеве
A3: Херсонське ЛВУМГ | I3: та прийнятого ПАТ "Херсонгаз" по газопроводу- відводу до совхоз Азовський
A4: Вимірювальна хіміко-аналітична лабораторія | L4: МАРШРУТ №681
A5: Свідоцтво про атестацію № РЧ 161/2015 дійсне до 01.01.2019 р. | I5: за період з 01.02.2017 по 28.02.2017 ( точка відбору ГРС Щасливцеве)
A7: Число місяця | B7: Компонентний склад, мол. % | N7: Фізико-хімічні показники газу обчислені на основі компонентного складу, 101,325 кПа | X7: Температура точки роси за вологою (Р = 3.92 МПа), °С | Y7: Температура точки роси за вуглеводнями, °С | Z7: Вміст сірководню, г/м3 | AA7: Вміст меркаптанової сірки, г/м3 | AB7: Вміст механічних домішок, г/м3
N8: Густина абсолютна, кг/м3,при 20 °С, | O8: Температура вимірювання/згоряння при 20/25°С
B9: метан, С1 | C9: етан, С2 | D9: пропан, С3 | E9: ізо-бутан, і-С4 | F9: н-бутан, н-С4 | G9: нео-пентан, нео-С5 | H9: ізо-пентан, і-С5 | I9: н-пентан, н-С5 | J9: гексани та вищі, С6+ | K9: кисень, О2 | L9: азот, N2 | M9: діоксид вуглецю, CО2 | O9: Теплота згоряння нижча | R9: Теплота згоряння вища | U9: Число Воббе вище
O10: ккал/м³ | P10: МДж/м³ | Q10: кВт⋅год/м³ | R10: ккал/м³ | S10: МДж/м³ | T10: кВт⋅год/м³ | U10: ккал/м³ | V10: МДж/м³ | W10: кВт⋅год/м³
A11: 1 | O11: =P11*238.8459 -> 7791.153258 | P11: 32.62 | Q11: 9.06 | R11: =S11*238.8459 -> 8648.610039 | S11: 36.21 | T11: 10.06 | U11: =V11*238.8459 -> 11502.81854 | V11: 48.16 | W11: 13.38
A12: 2 | O12: =P12*238.8459 -> 7791.153258 | P12: 32.62 | Q12: 9.06 | R12: =S12*238.8459 -> 8648.610039 | S12: 36.21 | T12: 10.06 | U12: =V12*238.8459 -> 11502.81854 | V12: 48.16 | W12: 13.38
A13: 3 | O13: 7791.153258 | P13: 32.62 | Q13: 9.06 | R13: 8648.610039 | S13: 36.21 | T13: 10.06 | U13: 11502.81854 | V13: 48.16 | W13: 13.38 | AD13: =IF(AC13=100,"ОК"," ") -> 
A14: 4 | O14: 7791.153258 | P14: 32.62 | Q14: 9.06 | R14: 8648.610039 | S14: 36.21 | T14: 10.06 | U14: 11502.81854 | V14: 48.16 | W14: 13.38 | AD14: =IF(AC14=100,"ОК"," ") -> 
A15: 5 | O15: 7791.153258 | P15: 32.62 | Q15: 9.06 | R15: 8648.610039 | S15: 36.21 | T15: 10.06 | U15: 11502.81854 | V15: 48.16 | W15: 13.38
A16: 6 | B16: 97.5276 | C16: <0,1000 | D16: <0,0200 | E16: <0,0010 | F16: <0,0010 | G16: <0,0010 | H16: 0.0015 | I16: <0,0010 | J16: <0,0010 | K16: 0.0303 | L16: 2.3735 | M16: 0.0386 | N16: 0.6809 | O16: 7791 | P16: 32.6218 | Q16: =P16/3.6 -> 9.061611111 | R16: 8650 | S16: 36.2158 | T16: =S16/3.6 -> 10.05994444 | U16: =V16*238.8459 -> 11504.8965 | V16: 48.1687 | W16: =V16/3.6 -> 13.38019444 | X16: 21.73 | Y16: -1.2 | Z16: <0,0001 | AA16: 0.0014
A17: 7 | O17: 7791 | P17: 32.6218 | Q17: =P17/3.6 -> 9.061611111 | R17: 8650 | S17: 36.2158 | T17: =S17/3.6 -> 10.05994444 | U17: =V17*238.8459 -> 11504.8965 | V17: 48.1687 | W17: =V17/3.6 -> 13.38019444
A18: 8 | O18: 7791 | P18: 32.6218 | Q18: 9.061611111 | R18: 8650 | S18: 36.2158 | T18: 10.05994444 | U18: 11504.8965 | V18: 48.1687 | W18: 13.38019444
A19: 9 | O19: 7791 | P19: 32.6218 | Q19: 9.061611111 | R19: 8650 | S19: 36.2158 | T19: 10.05994444 | U19: 11504.8965 | V19: 48.1687 | W19: 13.38019444
A20: 10 | O20: 7791 | P20: 32.6218 | Q20: 9.061611111 | R20: 8650 | S20: 36.2158 | T20: 10.05994444 | U20: 11504.8965 | V20: 48.1687 | W20: 13.38019444
A21: 11 | O21: 7791 | P21: 32.6218 | Q21: 9.061611111 | R21: 8650 | S21: 36.2158 | T21: 10.05994444 | U21: 11504.8965 | V21: 48.1687 | W21: 13.38019444
A22: 12 | O22: 7791 | P22: 32.6218 | Q22: 9.061611111 | R22: 8650 | S22: 36.2158 | T22: 10.05994444 | U22: 11504.8965 | V22: 48.1687 | W22: 13.38019444
A23: 13 | O23: 7791 | P23: 32.6218 | Q23: 9.061611111 | R23: 8650 | S23: 36.2158 | T23: 10.05994444 | U23: 11504.8965 | V23: 48.1687 | W23: 13.38019444
A24: 14 | B24: 97.5294 | C24: <0,1000 | D24: <0,0200 | E24: <0,0010 | F24: <0,0010 | G24: <0,0010 | H24: 0.0015 | I24: <0,0010 | J24: <0,0010 | K24: 0.0295 | L24: 2.373 | M24: 0.0384 | N24: 0.6808 | O24: 7791 | P24: 32.6221 | Q24: 9.061694444 | R24: 8650 | S24: 36.2162 | T24: 10.06005556 | U24: 11505.13535 | V24: 48.1697 | W24: 13.38047222 | X24: 21.3 | Y24: -1.5 | AB24: відсут.
A25: 15 | O25: 7791 | P25: 32.6221 | Q25: 9.061694444 | R25: 8650 | S25: 36.2162 | T25: 10.06005556 | U25: 11505.13535 | V25: 48.1697 | W25: 13.38047222
A26: 16 | O26: 7791 | P26: 32.6221 | Q26: 9.061694444 | R26: 8650 | S26: 36.2162 | T26: 10.06005556 | U26: 11505.13535 | V26: 48.1697 | W26: 13.38047222
A27: 17 | O27: 7791 | P27: 32.6221 | Q27: 9.061694444 | R27: 8650 | S27: 36.2162 | T27: 10.06005556 | U27: 11505.13535 | V27: 48.1697 | W27: 13.38047222
A28: 18 | O28: 7791 | P28: 32.6221 | Q28: 9.061694444 | R28: 8650 | S28: 36.2162 | T28: 10.06005556 | U28: 11505.13535 | V28: 48.1697 | W28: 13.38047222
A29: 19 | O29: 7791 | P29: 32.6221 | Q29: 9.061694444 | R29: 8650 | S29: 36.2162 | T29: 10.06005556 | U29: 11505.13535 | V29: 48.1697 | W29: 13.38047222
A30: 20 | O30: 7791 | P30: 32.6221 | Q30: 9.061694444 | R30: 8650 | S30: 36.2162 | T30: 10.06005556 | U30: 11505.13535 | V30: 48.1697 | W30: 13.38047222 | AD30: =IF(AC30=100,"ОК"," ") -> 
A31: 21 | B31: 97.5415 | C31: <0,1000 | D31: <0,0200 | E31: <0,0010 | F31: <0,0010 | G31: <0,0010 | H31: 0.0015 | I31: <0,0010 | J31: <0,0010 | K31: 0.0308 | L31: 2.3605 | M31: 0.0375 | N31: 0.6808 | O31: 7792 | P31: 32.6263 | Q31: =P31/3.6 -> 9.062861111 | R31: 8651 | S31: 36.2208 | T31: =S31/3.6 -> 10.06133333 | U31: =V31*238.8459 -> 11507.11777 | V31: 48.178 | W31: =V31/3.6 -> 13.38277778 | X31: 28 | Y31: 1.2
A32: 22 | O32: 7792 | P32: 32.6221 | Q32: =P32/3.6 -> 9.061694444 | R32: 8651 | S32: 36.2208 | T32: =S32/3.6 -> 10.06133333 | U32: =V32*238.8459 -> 11507.11777 | V32: 48.178 | W32: =V32/3.6 -> 13.38277778
A33: 23 | O33: 7792 | P33: 32.6221 | Q33: 9.061694444 | R33: 8651 | S33: 36.2208 | T33: 10.06133333 | U33: 11507.11777 | V33: 48.178 | W33: 13.38277778 | AD33: =IF(AC33=100,"ОК"," ") -> 
A34: 24 | O34: 7792 | P34: 32.6221 | Q34: 9.061694444 | R34: 8651 | S34: 36.2208 | T34: 10.06133333 | U34: 11507.11777 | V34: 48.178 | W34: 13.38277778
A35: 25 | O35: 7792 | P35: 32.6221 | Q35: 9.061694444 | R35: 8651 | S35: 36.2208 | T35: 10.06133333 | U35: 11507.11777 | V35: 48.178 | W35: 13.38277778
A36: 26 | O36: 7792 | P36: 32.6221 | Q36: 9.061694444 | R36: 8651 | S36: 36.2208 | T36: 10.06133333 | U36: 11507.11777 | V36: 48.178 | W36: 13.38277778
A37: 27 | O37: 7792 | P37: 32.6221 | Q37: 9.061694444 | R37: 8651 | S37: 36.2208 | T37: 10.06133333 | U37: 11507.11777 | V37: 48.178 | W37: 13.38277778
A38: 28 | B38: 97.5498 | C38: <0,1000 | D38: <0,0200 | E38: <0,0010 | F38: <0,0010 | G38: <0,0010 | H38: 0.0014 | I38: <0,0010 | J38: <0,0010 | K38: 0.029 | L38: 2.3517 | M38: 0.0382 | N38: 0.6807 | O38: 7793 | P38: 32.63 | Q38: 9.063888889 | R38: 8652 | S38: 36.225 | T38: 10.0625 | U38: 11508.74192 | V38: 48.1848 | W38: 13.38466667 | X38: 26.7 | Y38: 1.2
A39: 29 | AC39: =SUM(B39:M39)+$K$42+$N$42 -> 0
A40: 30 | AC40: 0
A41: 31 | AC41: 0
A42: Рівень одоризації відповідає чинним нормативним документам | O42: =SUMPRODUCT(O11:O38,' розрахунок'!D6:D33)/' розрахунок'!D34 -> 7791.281835 | P42: =SUMPRODUCT(P11:P38,' розрахунок'!D6:D33)/' розрахунок'!D34 -> 32.62193731 | Q42: =SUMPRODUCT(Q11:Q38,' розрахунок'!D6:D33)/' розрахунок'!D34 -> 9.061437439 | R42: =SUMPRODUCT(R11:R38,' розрахунок'!D6:D33)/' розрахунок'!D34 -> 8649.987645 | S42: =SUMPRODUCT(S11:S38,' розрахунок'!D6:D33)/' розрахунок'!D34 -> 36.21603797 | T42: =SUMPRODUCT(T11:T38,' розрахунок'!D6:D33)/' розрахунок'!D34 -> 10.06032827
H43: Середньозважене значення теплоти згоряння:
B47: В.о. Начальника управління Херсонського ЛВУМГ Кузьмін Р.Ф. 01.03.2017
C48: Підрозділу підприємства, якому підпорядкована лабораторія | O48: прізвище | R48: підпис | V48: дата
B49: Завідувач лабораторією Камишанова О.С. 01.03.2017
C50: Лабораторія, де здійснювалось вимірювання газу | O50: прізвище | R50: підпис | V50: дата
B51: Начальник служби метрології Скавронський Є.К. 01.03.2017
C52: Підрозділу, відповідального за облік газу за маршрутом | O52: прізвище | R52: підпис | V52: дата

Sheet розрахунок (hidden)
A1: Додаток до Паспорту фізико-хімічних показників природного газу по маршруту № 681
A3: Число місяця | B3: Теплота згоряння вища, МДж/м3 | D3: Загальний обсяг газу, м3
C5: ГРС Щасливцеве
A6: 1 | B6: 36.21 | C6: 65.042 | D6: =C6 -> 65.042
A7: 2 | B7: 36.21 | C7: 61.997 | D7: =C7 -> 61.997
A8: 3 | B8: 36.21 | C8: 58.432 | D8: 58.432
A9: 4 | B9: 36.21 | C9: 51.232 | D9: 51.232
A10: 5 | B10: 36.21 | C10: 51.971 | D10: 51.971
A11: 6 | B11: 36.2158 | C11: 52.704 | D11: 52.704
A12: 7 | B12: 36.2158 | C12: 60.644 | D12: 60.644
A13: 8 | B13: 36.2158 | C13: 64.349 | D13: 64.349
A14: 9 | B14: 36.2158 | C14: 64.659 | D14: 64.659
A15: 10 | B15: 36.2158 | C15: 65.104 | D15: 65.104
A16: 11 | B16: 36.2158 | C16: 64.937 | D16: 64.937
A17: 12 | B17: 36.2158 | C17: 62.944 | D17: 62.944
A18: 13 | B18: 36.2158 | C18: 63.473 | D18: 63.473
A19: 14 | B19: 36.2162 | C19: 63.424 | D19: 63.424
A20: 15 | B20: 36.2162 | C20: 58.98 | D20: 58.98
A21: 16 | B21: 36.2162 | C21: 57.364 | D21: 57.364
A22: 17 | B22: 36.2162 | C22: 54.826 | D22: 54.826
A23: 18 | B23: 36.2162 | C23: 51.315 | D23: 51.315
A24: 19 | B24: 36.2162 | C24: 48.14 | D24: 48.14
A25: 20 | B25: 36.2162 | C25: 49.527 | D25: 49.527
A26: 21 | B26: 36.2208 | C26: 47.358 | D26: 47.358
A27: 22 | B27: 36.2208 | C27: 47.252 | D27: 47.252
A28: 23 | B28: 36.2208 | C28: 45.305 | D28: 45.305
A29: 24 | B29: 36.2208 | C29: 38.559 | D29: 38.559
A30: 25 | B30: 36.2208 | C30: 41.225 | D30: 41.225
A31: 26 | B31: 36.2208 | C31: 42.543 | D31: 42.543
A32: 27 | B32: 36.2208 | C32: 41.661 | D32: 41.661
A33: 28 | B33: 36.225 | C33: 39.317 | D33: 39.317
A34: Загальний обсяг газу, м3 | C34: =SUM(C6:C33) -> 1514.284 | D34: 1514.284
A35: Енергія, МДж | C35: =SUMPRODUCT(B6:B33,C6:C33) -> 54841.36684 | D35: =SUMPRODUCT(B6:B33,D6:D33) -> 54841.36684
A36: Теплота згоряння (середньозважене значення за місяць), МДж/м³ | C36: =C35/C34 -> 36.21603797 | D36: =D35/D34 -> 36.21603797
A37: Теплота згоряння (середньозважене значення за місяць), ккал/м³ | C37: =C36*238.8459 -> 8650.052183 | D37: 8650.052183
A38: Теплота згоряння (середньозважене значення за місяць), кВт*год./м³ | C38: =C36/3.6 -> 10.06001055 | D38: 10.06001055

Sheet додаток
A1: Додаток до Паспорту фізико-хімічних показників природного газу № 681
A3: Область | B3: ГРС, прямий споживач | C3: Cередньозважене значення вищої теплоти згоряння
C4: МДж/м³ | D4: ккал/м³ | E4: кВт*год./м³
A5: Херсонська область | B5: ГРС-Щасливцеве | C5: 36.22 | D5: 8650 | E5: 10.06
A6: Середньозважене значення вищої теплоти згоряння по маршруту № 681 | C6: 36.22 | D6: 8650 | E6: 10.06
A10: В.о.Начальника управління Херсонського ЛВУМГ Кузьмін Р.Ф. | F10: 2017-03-01
A11: Підрозділу підприємства, якому підпорядкована лабораторія | D11: прізвище | E11: підпис | F11: дата
A12: Завідувач лабораторії Камишанова О.С. | F12: 2017-03-01
A13: Лабораторія, де здійснювалось вимірювання газу | D13: прізвище | E13: підпис | F13: дата
A14: Начальник служби ГВ та М Скавронський Є.К. | F14: 2017-03-01
A15: Підрозділу, відповідального за облік газу за маршрутом | D15: прізвище | E15: підпис | F15: дата

Sheet variablesList (hidden)
A1: 3 | B1: x:\gaysin | C1: 10, 11, 24, 25, 127, 128, 132, 180, 207, 215 | D1: x:\
B2: x:\Illinci
B3: x:\Talne
